[Event "V Open LLucmajor"]
[Site "LLucmajor"]
[Date "2016.05.09"]
[Round "1"]
[White "Medarde Santiago, Luis Marcos"]
[Black "Edouard, Romain"]
[Result "0-1"]
[ECO "B32"]
[WhiteElo "2306"]
[BlackElo "2632"]
[PlyCount "80"]
[EventDate "2016.??.??"]
[EventCountry "ESP"]
[TimeControl "5400+30"]
[WhiteClock "0:01:55"]
[BlackClock "0:55:13"]

1. e4 {[%emt 0:06:46]} c5 {[%emt 0:00:00]} 2. Nf3 {[%emt 0:00:26]} Nc6 {
[%emt 0:00:06]} 3. d4 {[%emt 0:00:35]} cxd4 {[%emt 0:00:05]} 4. Nxd4 {[%emt 0:
00:07]} e5 {[%emt 0:00:55]} 5. Nb5 {[%emt 0:00:46]} d6 {[%emt 0:00:04]} 6. N1c3
{[%emt 0:01:51]} a6 {[%emt 0:00:06]} 7. Na3 {[%emt 0:00:05]} Be6 {[%emt 0:00:
09]} 8. Nc4 {[%emt 0:00:34]} b5 {[%emt 0:00:21]} 9. Ne3 {[%emt 0:00:26]} Nf6 {
[%emt 0:00:06]} 10. g3 {[%emt 0:00:31]} g6 {[%emt 0:02:19]} 11. Bg2 {[%emt 0:
00:28]} Bg7 {[%emt 0:00:07]} 12. O-O {[%emt 0:02:36]} Rc8 {[%emt 0:00:44]} 13.
Ncd5 {[%emt 0:07:00]} Bxd5 {[%emt 0:02:45]} 14. Nxd5 {[%emt 0:06:28]} Nxd5 {
[%emt 0:00:10]} 15. exd5 {[%emt 0:00:10]} Ne7 {[%emt 0:00:15]} 16. c3 {[%emt 0:
05:06]} Rb8 {[%emt 0:05:56]} 17. Qe2 {[%emt 0:08:58]} Qc7 {[%emt 0:03:40]} 18.
a4 {[%emt 0:05:19]} Qc4 {[%emt 0:00:40]} 19. Qxc4 {[%emt 0:03:43]} bxc4 {
[%emt 0:00:29]} 20. a5 {[%emt 0:02:18]} Kd7 {[%emt 0:01:09]} 21. Ra4 {[%emt 0:
05:47]} Rhc8 {[%emt 0:00:34]} 22. Rd1 {[%emt 0:00:36]} Rc5 {[%emt 0:09:24]} 23.
Bf1 {[%emt 0:03:01]} Rxd5 {[%emt 0:00:26]} 24. Rxd5 {[%emt 0:01:40]} Nxd5 {
[%emt 0:00:19]} 25. Bxc4 {[%emt 0:05:03]} Nc7 {[%emt 0:00:10]} 26. Bxf7 {
[%emt 0:02:34]} d5 {[%emt 0:00:17]} 27. c4 {[%emt 0:01:43]} d4 {[%emt 0:00:12]}
28. c5 {[%emt 0:03:19]} Kc6 {[%emt 0:01:18]} 29. b4 {[%emt 0:00:37]} Nd5 {
[%emt 0:00:43]} 30. Bd2 {[%emt 0:00:53]} e4 {[%emt 0:00:29]} 31. Be6 {[%emt 0:
08:15]} d3 {[%emt 0:07:24]} 32. Kf1 {[%emt 0:03:13]} Nc3 {[%emt 0:05:21]} 33.
Bxc3 {[%emt 0:02:34]} Bxc3 {[%emt 0:00:11]} 34. b5+ {[%emt 0:02:06]} Rxb5 {
[%emt 0:01:22]} 35. Kg2 {[%emt 0:06:20]} h5 {[%emt 0:03:37]} 36. Bc4 {[%emt 0:
00:15]} Kxc5 {[%emt 0:01:20]} 37. h4 {[%emt 0:04:55]} Rxa5 {[%emt 0:01:17]} 38.
Rxa5+ {[%emt 0:00:18]} Kxc4 {[%emt 0:00:04]} 39. Rxa6 {[%emt 0:00:31]} d2 {
[%emt 0:00:04]} 40. Rc6+ {[%emt 0:00:12]} Kd3 {[%emt 0:00:09]} 0-1

[Event "V Open LLucmajor"]
[Site "LLucmajor"]
[Date "2016.05.09"]
[Round "1"]
[White "Michna, Christian"]
[Black "Levin, Felix"]
[Result "0-1"]
[ECO "D01"]
[WhiteElo "2276"]
[BlackElo "2506"]
[PlyCount "56"]
[EventDate "2016.??.??"]
[EventCountry "ESP"]
[TimeControl "5400+30"]
[WhiteClock "0:13:20"]
[BlackClock "0:09:50"]

1. d4 {[%emt 0:00:00]} Nf6 {[%emt 0:04:45]} 2. Nc3 {[%emt 0:00:00]} d5 {
[%emt 0:00:18]} 3. Bg5 {[%emt 0:00:00]} Nbd7 {[%emt 0:00:20]} 4. Qd3 {[%emt 0:
00:00]} c5 {[%emt 0:00:57]} 5. O-O-O {[%emt 0:01:08]} c4 {[%emt 0:01:49]} 6.
Qf3 {[%emt 0:00:44]} Qa5 {[%emt 0:01:02]} 7. Kb1 {[%emt 0:01:11]} e6 {[%emt 0:
04:55]} 8. Bd2 {[%emt 0:00:34]} Bb4 {[%emt 0:03:46]} 9. Qg3 {[%emt 0:15:05]}
O-O {[%emt 0:05:15]} 10. e4 {[%emt 0:01:36]} Bxc3 {[%emt 0:09:47]} 11. Bxc3 {
[%emt 0:00:14]} Qa4 {[%emt 0:00:28]} 12. f3 {[%emt 0:07:26]} b5 {[%emt 0:02:06]
} 13. Qe1 {[%emt 0:05:56]} dxe4 {[%emt 0:07:28]} 14. fxe4 {[%emt 0:06:46]} Bb7
{[%emt 0:00:09]} 15. b3 {[%emt 0:10:40]} Qa6 {[%emt 0:00:34]} 16. e5 {[%emt 0:
01:33]} Nd5 {[%emt 0:04:19]} 17. bxc4 {[%emt 0:02:27]} bxc4 {[%emt 0:03:07]}
18. h4 {[%emt 0:00:37]} Rfb8 {[%emt 0:10:46]} 19. Ka1 {[%emt 0:00:10]} Qa4 {
[%emt 0:00:09]} 20. Qd2 {[%emt 0:01:53]} a5 {[%emt 0:01:16]} 21. Rh3 {[%emt 0:
09:06]} Ba6 {[%emt 0:18:03]} 22. Qc1 {[%emt 0:15:03]} Nb4 {[%emt 0:00:29]} 23.
Bxb4 {[%emt 0:00:30]} axb4 {[%emt 0:00:08]} 24. Qb2 {[%emt 0:01:38]} c3 {
[%emt 0:03:03]} 25. Qb3 {[%emt 0:01:21]} Bxf1 {[%emt 0:00:20]} 26. Rxf1 {
[%emt 0:00:32]} Qc6 {[%emt 0:01:10]} 27. Ne2 {[%emt 0:04:28]} Ra3 {[%emt 0:06:
52]} 28. d5 {[%emt 0:00:02]} Qa6 {[%emt 0:00:49]} 0-1

[Event "V Open LLucmajor"]
[Site "LLucmajor"]
[Date "2016.05.09"]
[Round "1"]
[White "Rakhmanov, Aleksandr"]
[Black "Mouhamad, Joachin"]
[Result "1-0"]
[ECO "A05"]
[WhiteElo "2650"]
[BlackElo "2338"]
[PlyCount "47"]
[EventDate "2016.??.??"]
[EventCountry "ESP"]
[TimeControl "5400+30"]
[WhiteClock "0:14:40"]
[BlackClock "0:00:41"]

1. Nf3 {[%emt 0:00:00]} Nf6 {[%emt 0:04:34]} 2. g3 {[%emt 0:00:18]} g6 {
[%emt 0:00:29]} 3. b3 {[%emt 0:00:19]} Bg7 {[%emt 0:00:31]} 4. Bb2 {[%emt 0:00:
06]} c5 {[%emt 0:00:49]} 5. c4 {[%emt 0:00:45]} O-O {[%emt 0:01:07]} 6. Bg2 {
[%emt 0:03:47]} d5 {[%emt 0:03:31]} 7. cxd5 {[%emt 0:00:48]} Qxd5 {[%emt 0:00:
21]} 8. Nc3 {[%emt 0:06:48]} Qh5 {[%emt 0:19:56]} 9. h3 {[%emt 0:02:59]} Ne4 {
[%emt 0:14:29]} 10. g4 {[%emt 0:23:54]} Qh6 {[%emt 0:00:30]} 11. Qc2 {[%emt 0:
00:30]} Nxc3 {[%emt 0:00:30]} 12. Bxc3 {[%emt 0:00:30]} Bxc3 {[%emt 0:00:30]}
13. Qxc3 {[%emt 0:00:30]} Qg7 {[%emt 0:15:08]} 14. Rc1 {[%emt 0:14:39]} Na6 {
[%emt 0:15:31]} 15. Ne5 {[%emt 0:11:39]} Rb8 {[%emt 0:02:24]} 16. d4 {[%emt 0:
03:22]} cxd4 {[%emt 0:01:34]} 17. Qxd4 {[%emt 0:00:07]} b6 {[%emt 0:00:25]} 18.
O-O {[%emt 0:03:39]} Nc5 {[%emt 0:00:51]} 19. Qe3 {[%emt 0:05:35]} Re8 {
[%emt 0:15:17]} 20. b4 {[%emt 0:03:16]} Ne6 {[%emt 0:00:25]} 21. f4 {[%emt 0:
02:32]} f6 {[%emt 0:00:35]} 22. Nc6 {[%emt 0:00:34]} Rb7 {[%emt 0:00:10]} 23.
Bd5 {[%emt 0:00:16]} Kf7 {[%emt 0:01:12]} 24. Nd4 {[%emt 0:00:27]} 1-0

[Event "V Open LLucmajor"]
[Site "LLucmajor"]
[Date "2016.05.09"]
[Round "1"]
[White "Santagati, Alessandro"]
[Black "Demuth, Adrien"]
[Result "1/2-1/2"]
[ECO "B22"]
[WhiteElo "2316"]
[BlackElo "2550"]
[PlyCount "112"]
[EventDate "2016.??.??"]
[EventCountry "ESP"]
[TimeControl "5400+30"]
[WhiteClock "0:02:45"]
[BlackClock "0:00:33"]

1. e4 {[%emt 0:00:00]} c5 {[%emt 0:01:48]} 2. c3 {[%emt 0:00:09]} d5 {[%emt 0:
00:13]} 3. exd5 {[%emt 0:00:07]} Qxd5 {[%emt 0:00:04]} 4. d4 {[%emt 0:00:20]}
Nf6 {[%emt 0:00:41]} 5. Nf3 {[%emt 0:01:13]} e6 {[%emt 0:00:28]} 6. Be2 {
[%emt 0:00:35]} cxd4 {[%emt 0:01:37]} 7. cxd4 {[%emt 0:00:16]} Nc6 {[%emt 0:00:
12]} 8. O-O {[%emt 0:03:22]} Be7 {[%emt 0:00:35]} 9. Nc3 {[%emt 0:04:11]} Qd6 {
[%emt 0:00:32]} 10. Qa4 {[%emt 0:10:14]} O-O {[%emt 0:02:44]} 11. Rd1 {[%emt 0:
05:11]} Rd8 {[%emt 0:25:25]} 12. a3 b6 {[%emt 0:12:22]} 13. Bg5 {[%emt 0:19:49]
} Bb7 {[%emt 0:03:40]} 14. Rac1 {[%emt 0:11:45]} Rac8 {[%emt 0:07:51]} 15. Bxf6
{[%emt 0:12:47]} Bxf6 {[%emt 0:02:12]} 16. d5 {[%emt 0:00:56]} exd5 {[%emt 0:
07:18]} 17. Rxd5 {[%emt 0:14:39]} Qe7 {[%emt 0:02:42]} 18. Ba6 {[%emt 0:02:57]}
Bxc3 {[%emt 0:06:53]} 19. Rxd8+ {[%emt 0:00:19]} Rxd8 {[%emt 0:00:36]} 20. bxc3
{[%emt 0:03:23]} Nd4 {[%emt 0:14:42]} 21. cxd4 {[%emt 0:04:19]} Bxf3 {[%emt 0:
00:05]} 22. Bf1 {[%emt 0:00:29]} Bd5 {[%emt 0:02:17]} 23. Rc3 {[%emt 0:00:39]}
g6 {[%emt 0:01:08]} 24. Re3 {[%emt 0:00:35]} Be6 {[%emt 0:01:40]} 25. f3 {
[%emt 0:01:42]} Qd7 {[%emt 0:03:05]} 26. Qxd7 {[%emt 0:00:40]} Rxd7 {[%emt 0:
00:01]} 27. Rd3 {[%emt 0:00:10]} Bc4 {[%emt 0:01:04]} 28. Rd2 {[%emt 0:00:12]}
Bxf1 {[%emt 0:00:28]} 29. Kxf1 {[%emt 0:00:05]} Rc7 {[%emt 0:01:21]} 30. Ke2 {
[%emt 0:00:03]} Rc3 {[%emt 0:00:25]} 31. Rd3 {[%emt 0:01:22]} Rc2+ {[%emt 0:00:
05]} 32. Ke3 {[%emt 0:01:47]} Kf8 {[%emt 0:00:54]} 33. g3 {[%emt 0:00:28]} Rxh2
{[%emt 0:00:31]} 34. Rc3 {[%emt 0:00:06]} Ra2 {[%emt 0:00:32]} 35. Rc8+ {
[%emt 0:00:27]} Kg7 {[%emt 0:00:16]} 36. Rc3 {[%emt 0:00:19]} Kf6 {[%emt 0:00:
26]} 37. Rc6+ {[%emt 0:00:05]} Kg7 {[%emt 0:00:03]} 38. Rc3 {[%emt 0:00:02]} a5
{[%emt 0:01:10]} 39. Ke4 {[%emt 0:01:01]} b5 {[%emt 0:00:24]} 40. Kd5 {[%emt 0:
00:35]} b4 {[%emt 0:00:36]} 41. axb4 {[%emt 0:01:17]} axb4 {[%emt 0:00:01]} 42.
Rb3 {[%emt 0:00:47]} Ra3 {[%emt 0:00:27]} 43. Rxb4 {[%emt 0:00:10]} Rxf3 {
[%emt 0:00:11]} 44. Kc6 {[%emt 0:00:51]} Rc3+ {[%emt 0:00:15]} 45. Kd7 {
[%emt 0:00:20]} Rxg3 {[%emt 0:01:37]} 46. d5 {[%emt 0:00:04]} Rd3 {[%emt 0:00:
12]} 47. d6 {[%emt 0:00:03]} f5 {[%emt 0:01:01]} 48. Ke6 {[%emt 0:01:36]} Re3+
{[%emt 0:00:18]} 49. Kd5 {[%emt 0:00:58]} Rd3+ {[%emt 0:00:15]} 50. Ke6 {
[%emt 0:00:01]} Re3+ {[%emt 0:00:32]} 51. Kd5 {[%emt 0:00:04]} Kf6 {[%emt 0:00:
53]} 52. Rb8 {[%emt 0:01:02]} Rd3+ {[%emt 0:00:25]} 53. Kc6 {[%emt 0:00:03]}
Rc3+ {[%emt 0:00:35]} 54. Kd5 {[%emt 0:00:02]} Rd3+ {[%emt 0:00:23]} 55. Kc6 {
[%emt 0:00:18]} Rc3+ {[%emt 0:00:37]} 56. Kd5 {[%emt 0:00:20]} Rd3+ {[%emt 0:
00:39] Ke4 Ke5+} 1/2-1/2

[Event "V Open LLucmajor"]
[Site "LLucmajor"]
[Date "2016.05.09"]
[Round "1"]
[White "Winants, Luc"]
[Black "Baches Garcia, Guillermo"]
[Result "1-0"]
[ECO "D20"]
[WhiteElo "2574"]
[BlackElo "2331"]
[PlyCount "85"]
[EventDate "2016.??.??"]
[EventCountry "ESP"]
[TimeControl "5400+30"]
[WhiteClock "0:19:35"]
[BlackClock "0:00:56"]

1. d4 {[%emt 0:00:00]} d5 {[%emt 0:00:00]} 2. c4 {[%emt 0:00:00]} dxc4 {
[%emt 0:00:38]} 3. e3 {[%emt 0:01:07]} e5 {[%emt 0:01:50]} 4. Bxc4 {[%emt 0:00:
20]} exd4 {[%emt 0:02:00]} 5. exd4 {[%emt 0:00:16]} Bd6 {[%emt 0:00:33]} 6. Nf3
{[%emt 0:00:33]} Nf6 {[%emt 0:00:08]} 7. O-O {[%emt 0:00:36]} O-O {[%emt 0:00:
26]} 8. h3 {[%emt 0:03:45]} h6 {[%emt 0:07:03]} 9. Qd3 {[%emt 0:08:51]} Nc6 {
[%emt 0:09:49]} 10. a3 {[%emt 0:01:00]} Ne7 {[%emt 0:07:05]} 11. Re1 {[%emt 0:
02:10]} c6 {[%emt 0:02:26]} 12. Ne5 {[%emt 0:02:12]} Bc7 {[%emt 0:07:11]} 13.
Nd2 {[%emt 0:07:26]} Nf5 {[%emt 0:03:58]} 14. Ndf3 {[%emt 0:00:51]} Nd6 {
[%emt 0:00:54]} 15. Ba2 {[%emt 0:03:04]} Bf5 {[%emt 0:00:34]} 16. Qd1 {[%emt 0:
01:34]} Nd5 {[%emt 0:03:30]} 17. Bd2 {[%emt 0:03:55]} a5 {[%emt 0:08:59]} 18.
Rc1 {[%emt 0:00:36]} Bb6 {[%emt 0:01:54]} 19. a4 {[%emt 0:08:12]} Rc8 {[%emt 0:
06:13]} 20. Nc4 {[%emt 0:04:51]} Bc7 {[%emt 0:03:05]} 21. Ne3 {[%emt 0:00:30]}
Be6 {[%emt 0:05:12]} 22. Bb1 {[%emt 0:05:03]} Nf6 {[%emt 0:03:30]} 23. Bc3 {
[%emt 0:02:47]} Nde4 {[%emt 0:02:03]} 24. Qd3 {[%emt 0:02:38]} Re8 {[%emt 0:02:
36]} 25. Bc2 {[%emt 0:04:06]} Qe7 {[%emt 0:09:38]} 26. d5 {[%emt 0:08:11]} cxd5
{[%emt 0:03:26]} 27. Bxf6 {[%emt 0:01:42]} Qxf6 {[%emt 0:00:14]} 28. Nxd5 {
[%emt 0:00:23]} Bxd5 {[%emt 0:00:18]} 29. Qxd5 {[%emt 0:00:08]} Bf4 {[%emt 0:
05:43]} 30. Rb1 {[%emt 0:02:18]} Rxc2 {[%emt 0:01:01]} 31. Rxe4 {[%emt 0:00:10]
} Rxe4 {[%emt 0:01:42]} 32. Qxe4 {[%emt 0:00:07]} Rc1+ {[%emt 0:01:05]} 33.
Rxc1 {[%emt 0:00:19]} Bxc1 {[%emt 0:00:01]} 34. Qxb7 {[%emt 0:02:30]} Qxb2 {
[%emt 0:01:03]} 35. Qa8+ {[%emt 0:00:15]} Kh7 {[%emt 0:00:04]} 36. Qxa5 {
[%emt 0:00:44]} Qa1 {[%emt 0:00:35]} 37. Qe1 {[%emt 0:01:53]} Qa3 {[%emt 0:00:
07]} 38. a5 {[%emt 0:01:41]} Bb2 {[%emt 0:00:08]} 39. a6 {[%emt 0:02:06]} g6 {
[%emt 0:00:06]} 40. Qb1 {[%emt 0:01:13]} Bg7 {[%emt 0:02:14]} 41. Qb7 {[%emt 0:
00:59]} Bd4 {[%emt 0:00:52]} 42. Qxf7+ {[%emt 0:00:21]} Kh8 {[%emt 0:00:10]}
43. Nxd4 {[%emt 0:00:32]} 1-0